fUSD/lending_fUSD_20240520
["ID","MTS","AMOUNT","RATE_DAILY","PERIOD"]
[327579656,1716243038768,-166.66666667,0.00024608,2]
[327579658,1716243038778,-150.51320039,0.0002467,2]
[327579660,1716243038788,-200.0,0.00024677,2]
[327579662,1716243038798,-500.0,0.00024689,2]
[327579664,1716243038807,-1364.52495393,0.00024734,2]
[327579666,1716243038818,-319.077,0.00024734,2]
[327579703,1716243041298,-316.39804607,0.00024734,2]
[327579704,1716243041308,-1135.45625163,0.00024761,2]
[327579705,1716243041320,-641.12690815,0.00024761,2]
[327579706,1716243041332,-2532.09684022,0.00024761,2]
[327579707,1716243041341,-169.67964308,0.00024817,2]
[327579708,1716243041353,-14707.85348322,0.00024817,2]
[327579709,1716243041363,-250.0,0.00024842,2]
[327579710,1716243041372,-428.12,0.00024924,2]
[327579711,1716243041382,-1505.78,0.00024953,2]
[327579712,1716243041391,-312.22749071,0.00024989,2]
[327579713,1716243041400,-9152.26459409,0.0002499,2]
[327579714,1716243041410,-926.52234979,0.00025,2]
[327579715,1716243041421,-155.0,0.00025,2]
[327579716,1716243041431,-155.0,0.00025,2]
[327579717,1716243041440,-224.21566957,0.00025,2]
[327579718,1716243041450,-1000.62,0.00025,2]
[327579719,1716243041459,-8238.67554963,0.00025,2]
[327579720,1716243041471,-1977.01821,0.00025,2]
[327579724,1716243041816,-7273.01699992,0.00025,2]
[327579726,1716243041828,-611.29761234,0.00025,2]
[327579775,1716243043830,-7316.18746697,0.00025,2]
[327579776,1716243043844,-4043.23692891,0.00025,2]
[327579795,1716243044159,-413415.52805888,0.00025,2]
[327579797,1716243044171,-310.36,0.00025,2]
[327579799,1716243044182,-216.61,0.00025001,2]
[327579801,1716243044192,-250.0,0.00025016,2]
[327579838,1716243044531,-177.94446365,0.0002518,2]
[327579840,1716243044541,-251.93542734,0.00025301,2]
[327579842,1716243044551,-1000.0,0.00025601,2]
[327579843,1716243044561,-151.37,0.00025622,2]
[327579845,1716243044571,-167.01,0.00025696,2]
[327579848,1716243044582,-500.22706732,0.00025697,2]
[327579850,1716243044591,-988.0,0.00026027,2]
[327579851,1716243044600,-180.92177585,0.00026097,2]
[327579853,1716243044610,-194.46227448,0.00026129,10]
[327579854,1716243044619,-155.10854058,0.00026171,2]
[327579855,1716243044629,-1004.78,0.0002637,2]
[327579856,1716243044639,-2649.13730265,0.00026498,2]
[327579857,1716243044648,-242.473113,0.00026637,2]
[327579858,1716243044657,-3160.15098653,0.00027,2]
[327579859,1716243044666,-1198.64768723,0.00027,2]
[327579860,1716243044677,-155.10854058,0.00027024,2]
[327579861,1716243044686,-500.0,0.00027287,2]
[327579862,1716243044696,-1105.40157892,0.000273,2]
[327579863,1716243044705,-1105.40157874,0.000273,2]
[327579864,1716243044714,-1105.40157874,0.000273,2]
[327579865,1716243044723,-1105.40157874,0.000273,2]
[327579866,1716243044732,-155.10854058,0.00027303,2]
[327579867,1716243044741,-180.0,0.00027315,2]
[327579868,1716243044751,-153.37,0.00027324,2]
[327579869,1716243044760,-804.75282659,0.0002739,2]
[327579871,1716243044769,-988.0,0.00027397,4]
[327579872,1716243044778,-2333.35,0.00027397,10]
[327579874,1716243044788,-410.71540116,0.000274,2]
[327579876,1716243044798,-460.0,0.000274,2]
[327579878,1716243044807,-1000.0,0.000274,2]
[327579880,1716243044816,-155.79488321,0.00027586,2]
[327579882,1716243044826,-150.51320039,0.00027663,2]
[327579884,1716243044836,-5364.858,0.000279,2]
[327579886,1716243044846,-210.5951,0.000279,2]
[327579888,1716243044856,-153.93988001,0.00027916,2]
[327579890,1716243044865,-155.1085406,0.00027949,2]
[327579892,1716243044875,-49999.999999,0.00028,2]
[327579894,1716243044885,-1105.40157874,0.00028059,2]
[327579896,1716243044894,-1564.1179518,0.000287,2]
[327579898,1716243044904,-264.96406459,0.0002871,3]
[327579900,1716243044913,-790.42144,0.0002871,2]
[327579902,1716243044924,-155.25271234,0.00028754,2]
[327579904,1716243044934,-988.0,0.00028767,6]
[327579906,1716243044943,-200.0,0.00028768,2]
[327579908,1716243044952,-1000.0,0.00028768,15]
[327579910,1716243044961,-500.0,0.00028768,2]
[327579912,1716243044971,-2500.0,0.00028799,2]
[327579914,1716243044981,-1000.0,0.00028801,2]
[327579916,1716243044992,-1105.40157874,0.00028848,2]
[327579918,1716243045002,-1000.0,0.00028899,2]
[327579920,1716243045011,-4225.952,0.00028899,2]
[327579922,1716243045022,-400.8645,0.00028899,2]
[327579924,1716243045031,-73012.1569,0.00028899,2]
[327579926,1716243045041,-500.0,0.00028899,2]
[327579928,1716243045051,-7500.0,0.00028899,2]
[327579930,1716243045062,-305.7363162,0.00028899,2]
[327579932,1716243045075,-344.19183666,0.00028899,2]
[327579934,1716243045085,-311.74964206,0.00028899,2]
[327579936,1716243045095,-300.0,0.000289,10]
[327579938,1716243045105,-1153.97043655,0.00028904,2]
[327579940,1716243045114,-236.41647187,0.00028984,11]
[327579942,1716243045124,-375.64,0.00028986,2]
[327579944,1716243045134,-357.5,0.00028997,2]
[327579946,1716243045147,-5184.68610729,0.00028997,2]
[327579948,1716243045157,-6238.00785367,0.00028997,2]
[327579950,1716243045167,-587.23728685,0.00028997,2]
[327579952,1716243045177,-472.25625666,0.00028997,2]
[327579954,1716243045187,-158.43327398,0.00028997,2]
[327579956,1716243045197,-410.27026242,0.00028997,2]
[327579958,1716243045206,-427.2731236,0.00028997,2]
[327579960,1716243045216,-176.91356603,0.00028997,2]
[327579962,1716243045226,-618.8768531,0.00028997,2]
[327579965,1716243045235,-155.0,0.00028997,2]
[327579967,1716243045245,-204.69599725,0.00028997,2]
[327579969,1716243045254,-4427.93566092,0.00028997,2]
[327579971,1716243045265,-325.76293882,0.00028998,2]
[327579973,1716243045274,-155.0,0.00028998,2]
[327579975,1716243045284,-1370.1766084,0.00028998,2]
[327579977,1716243045293,-162.50319315,0.00028998,2]
[327579979,1716243045304,-201.95038958,0.00028998,15]
[327579981,1716243045313,-1301.96489797,0.00028998,15]
[327579983,1716243045323,-2105.96992679,0.00028999,2]
[327579985,1716243045333,-150.01,0.00028999,2]
[327579987,1716243045343,-5870.43521357,0.00028999,2]
[327579989,1716243045353,-124318.1501163,0.00029,2]
[327579991,1716243045363,-1481.71970581,0.00029,2]
[327579993,1716243045372,-1950.0,0.00029,2]
[327579995,1716243045382,-500.0,0.00029,2]
[327579997,1716243045392,-500.0,0.00029,2]
[327579999,1716243045402,-500.0,0.00029,2]
[327580001,1716243045411,-500.0,0.00029,2]
[327580003,1716243045422,-500.0,0.00029,2]
[327580005,1716243045432,-500.0,0.00029,2]
[327580007,1716243045441,-18783.57953697,0.00029,2]
[327580009,1716243045450,-2000.0,0.00029,2]
[327580011,1716243045460,-200.0,0.00029,2]
[327580013,1716243045469,-1500.0,0.00029,2]
[327580015,1716243045479,-155.25271234,0.0002917,2]
[327580016,1716243045490,-2000.0,0.0002929,2]
[327580018,1716243045500,-200.0,0.0002929,2]
[327580019,1716243045509,-150.51320042,0.00029407,2]
[327580021,1716243045519,-225.69631253,0.000295,3]
[327580023,1716243045529,-1105.40157874,0.00029638,2]
[327580025,1716243045539,-157.052106,0.00029748,24]
[327580027,1716243045549,-153.08402109,0.00029779,2]
[327580029,1716243045559,-155.25271239,0.00029849,2]
[327580031,1716243045569,-153.08402109,0.00029988,2]
[327580033,1716243045579,-2000.0,0.0003,2]
[327580035,1716243045589,-2342.31740382,0.0003,4]
[327580037,1716243045600,-5687.24550343,0.0003,2]
[327580039,1716243045610,-7171.84907073,0.0003,4]
[327580041,1716243045619,-485.68644464,0.0003,3]
[327580043,1716243045629,-150.0,0.0003,18]
[327580045,1716243045638,-600.0,0.0003,2]
[327580047,1716243045648,-988.0,0.00030136,8]
[327580049,1716243045657,-1105.40157874,0.00030427,2]
[327580051,1716243045668,-344.19183666,0.00030471,2]
[327580052,1716243045680,-188.0,0.000305,19]
[327580054,1716243045690,-153.37,0.00030633,2]
[327580056,1716243045700,-2000.0,0.00031,2]
[327580058,1716243045709,-790.42144,0.0003121,2]
[327580060,1716243045719,-1105.40157874,0.00031216,2]
[327580062,1716243045728,-988.0,0.00031506,10]
[327580064,1716243045737,-28051.0,0.00031542,5]
[327580066,1716243045747,-305.73631618,0.00031649,2]
[327580068,1716243045757,-157.052106,0.00031748,30]
[327580070,1716243045767,-230.81237396,0.00032,4]
[327580072,1716243045776,-1000.0,0.00032001,2]
[327580074,1716243045786,-1105.40157874,0.00032006,2]
[327580076,1716243045796,-344.19183666,0.00032042,2]
[327580078,1716243045805,-200.0,0.00032107,15]
[327580080,1716243045815,-183.0,0.00032512,5]
[327580082,1716243045825,-151.0,0.00032655,2]
[327580084,1716243045834,-157.052106,0.00032748,32]
[327580086,1716243045844,-1165.9925961,0.00032789,4]
[327580087,1716243045853,-1105.40157874,0.00032795,2]
[327580090,1716243045863,-223.0,0.000328,2]
[327580091,1716243045874,-5020.26168955,0.000328,4]
[327580094,1716243045884,-353.0,0.000328,2]
[327580095,1716243045894,-1000.0,0.000328,2]
[327580097,1716243045903,-988.0,0.00032876,12]
[327580099,1716243045913,-1774.73,0.00032877,2]
[327580101,1716243045923,-17841.63036582,0.00032898,14]
[327580103,1716243045933,-197247.392679,0.000329,30]
[327580105,1716243045943,-12811.34843114,0.000329,30]
[327580107,1716243045952,-2000.0,0.000329,2]
[327580109,1716243045962,-460.66978277,0.000329,2]
[327580111,1716243045972,-1000.0,0.000329,2]
[327580113,1716243045982,-700.0,0.000329,12]
[327580115,1716243045991,-1034.64124282,0.00032999,30]
[327580117,1716243046001,-2775.58189251,0.00033,2]
[327580119,1716243046011,-2050.0,0.00033,2]
[327580121,1716243046021,-150.0,0.00033,2]
[327580123,1716243046031,-236.44,0.00033396,2]
[327580125,1716243046040,-215.23,0.00033396,2]
[327580127,1716243046050,-151.0,0.000335,7]
[327580129,1716243046065,-151.0,0.000335,7]
[327580132,1716243046075,-151.0,0.000335,7]
[327580135,1716243046084,-151.0,0.000335,7]
[327580137,1716243046095,-151.0,0.000335,7]
[327580139,1716243046104,-151.0,0.000335,7]
[327580141,1716243046114,-151.0,0.000335,7]
[327580143,1716243046124,-151.0,0.000335,7]
[327580146,1716243046136,-151.0,0.000335,7]
[327580148,1716243046145,-151.0,0.000335,7]
[327580151,1716243046154,-151.0,0.000335,7]
[327580152,1716243046164,-151.0,0.000335,7]
[327580154,1716243046175,-151.0,0.000335,7]
[327580156,1716243046184,-151.0,0.000335,7]
[327580158,1716243046194,-151.0,0.000335,7]
[327580160,1716243046203,-151.0,0.000335,7]
[327580162,1716243046213,-151.0,0.000335,7]
[327580164,1716243046222,-303.540509,0.000335,7]
[327580166,1716243046232,-303.540509,0.000335,7]
[327580168,1716243046242,-151.0,0.000335,7]
[327580170,1716243046251,-151.0,0.000335,7]
[327580172,1716243046261,-159.015914,0.000335,7]
[327580174,1716243046270,-151.0,0.000335,7]
[327580176,1716243046280,-151.0,0.000335,7]
[327580178,1716243046290,-1938.34,0.000335,2]
[327580180,1716243046300,-1938.34,0.000335,2]
[327580182,1716243046310,-1938.34,0.000335,2]
[327580184,1716243046320,-1938.34,0.000335,2]
[327580186,1716243046329,-1938.34,0.000335,2]
[327580188,1716243046340,-1938.34,0.000335,2]
[327580190,1716243046350,-1938.34,0.000335,2]
[327580192,1716243046360,-1938.34,0.000335,2]
[327580194,1716243046370,-1938.34,0.000335,2]
[327580196,1716243046380,-1938.34,0.000335,2]
[327580198,1716243046389,-1938.34,0.000335,2]
[327580200,1716243046399,-1938.34,0.000335,2]
[327580202,1716243046409,-1938.34,0.000335,2]
[327580204,1716243046419,-1938.34,0.000335,2]
[327580206,1716243046430,-1938.34,0.000335,2]
[327580208,1716243046439,-1938.34,0.000335,2]
[327580210,1716243046449,-1938.34,0.000335,2]
[327580212,1716243046458,-1938.34,0.000335,2]
[327580215,1716243046468,-1938.34,0.000335,2]
[327580217,1716243046478,-1938.34,0.000335,2]
[327580218,1716243046488,-151.0,0.000335,7]
[327580220,1716243046497,-151.0,0.000335,7]
[327580222,1716243046507,-151.0,0.000335,7]
[327580224,1716243046516,-151.0,0.000335,7]
[327580226,1716243046525,-151.0,0.000335,7]
[327580228,1716243046535,-151.0,0.000335,7]
[327580230,1716243046545,-2003.92325174,0.00033502,7]
[327580232,1716243046554,-2523.47932147,0.00033502,20]
[327580234,1716243046564,-14435.22122005,0.00033502,3]
[327580236,1716243046574,-5169.72360078,0.00033502,3]
[327580238,1716243046584,-2023.40558642,0.00033502,2]
[327580240,1716243046596,-54467.38513082,0.00033502,3]
[327580242,1716243046605,-3858.97796276,0.00033502,3]
[327580244,1716243046615,-35906.51427709,0.00033502,20]
[327580246,1716243046625,-1105.40157874,0.00033585,2]
[327580248,1716243046635,-344.19183666,0.00033614,2]
[327580250,1716243046644,-790.42144,0.0003371,2]
[327580252,1716243046653,-157.052106,0.00033748,32]
[327580254,1716243046662,-5020.26168945,0.00033844,6]
[327580256,1716243046672,-153.37,0.00033941,2]
[327580258,1716243046682,-433.01080712,0.00034,35]
[327580260,1716243046691,-988.0,0.00034246,14]
[327580262,1716243046700,-1105.40157874,0.00034374,2]
[327580264,1716243046710,-305.73631618,0.000344,2]
[327580266,1716243046720,-150.1,0.00034475,2]
[327580268,1716243046730,-1032.8209973,0.000345,2]
[327580270,1716243046739,-10788.19420794,0.00034646,2]
[327580272,1716243046749,-240.0,0.00034684,31]
[327580274,1716243046758,-157.052106,0.00034748,34]
[327580276,1716243046768,-5020.26168945,0.00034888,7]
[327580278,1716243046777,-50000.0,0.00035,15]
[327580280,1716243046786,-50000.0,0.00035,25]
[327580282,1716243046795,-160.0,0.00035,8]
[327580284,1716243046804,-614.45971342,0.00035,4]
[327580287,1716243046819,-673.1620234,0.00035,4]
[327580289,1716243046828,-29.62582271,0.00035,20]
[327580291,1716243046839,-453.37417729,0.00035,20]
[327580301,1716243046927,-8643.96347212,0.00035,2]
[327580303,1716243046936,-1276.61941649,0.00035,30]
[327580305,1716243046945,-3898.25516022,0.00035,2]
[327580307,1716243046954,-3000.0,0.00035,60]
[327580309,1716243046963,-2100.0,0.00035,2]
[327580311,1716243046972,-151.0,0.00035,7]
[327580313,1716243046981,-151.0,0.00035,7]
[327580315,1716243046990,-157.245632,0.00035,7]
[327580317,1716243046999,-151.0,0.00035,7]
[327580319,1716243047008,-151.0,0.00035,7]
[327580322,1716243047018,-151.0,0.00035,7]
[327580325,1716243047027,-151.0,0.00035,7]
[327580326,1716243047036,-151.0,0.00035,7]
[327580328,1716243047045,-152.778689,0.00035,7]
[327580331,1716243047059,-151.0,0.00035,7]
[327580332,1716243047068,-151.0,0.00035,7]
[327580334,1716243047077,-151.0,0.00035,7]
[327580336,1716243047086,-151.0,0.00035,7]
[327580338,1716243047095,-151.0,0.00035,7]
[327580340,1716243047104,-283.107403,0.00035,7]
[327580341,1716243047113,-151.0,0.00035,7]
[327580342,1716243047121,-151.0,0.00035,7]
[327580343,1716243047131,-151.0,0.00035,7]
[327580344,1716243047140,-151.0,0.00035,7]
[327580345,1716243047151,-151.0,0.00035,7]
[327580346,1716243047160,-196.267303,0.00035,7]
[327580347,1716243047169,-151.0,0.00035,7]
[327580348,1716243047178,-287.356038,0.00035,7]
[327580349,1716243047187,-151.0,0.00035,7]
[327580350,1716243047196,-151.0,0.00035,7]
[327580351,1716243047206,-299.590068,0.00035,7]
[327580352,1716243047224,-151.0,0.00035,7]
[327580353,1716243047233,-303.540509,0.00035,7]
[327580354,1716243047242,-303.540509,0.00035,7]
[327580355,1716243047251,-151.0,0.00035,7]
[327580356,1716243047260,-151.0,0.00035,7]
[327580357,1716243047269,-151.0,0.00035,7]
[327580358,1716243047278,-151.0,0.00035,7]
[327580359,1716243047287,-151.0,0.00035,7]
[327580360,1716243047296,-151.0,0.00035,7]
[327580361,1716243047305,-151.0,0.00035,7]
[327580362,1716243047314,-151.0,0.00035,7]
[327580363,1716243047324,-151.0,0.00035,7]
[327580364,1716243047333,-151.0,0.00035,7]
[327580365,1716243047342,-151.0,0.00035,7]
[327580366,1716243047351,-151.0,0.00035,7]
[327580367,1716243047360,-151.0,0.00035,7]
[327580368,1716243047370,-242.87602,0.00035,7]
[327580369,1716243047380,-151.0,0.00035,7]
[327580370,1716243047389,-1596.278744,0.00035,7]
[327580371,1716243047398,-309.636444,0.00035,7]
[327580372,1716243047407,-1596.278744,0.00035,7]
[327580373,1716243047417,-309.636444,0.00035,7]
[327580374,1716243047428,-247.904537,0.00035,7]
[327580375,1716243047437,-151.0,0.00035,7]
[327580376,1716243047446,-183.214919,0.00035,7]
[327580377,1716243047455,-151.0,0.00035,7]
[327580378,1716243047464,-183.214919,0.00035,7]
[327580379,1716243047473,-1105.40157874,0.00035163,2]
[327580380,1716243047482,-344.19183666,0.00035185,2]
[327580381,1716243047491,-1000.0,0.00035201,2]
[327580382,1716243047500,-884.86543562,0.00035616,16]
[327580383,1716243047510,-200.0,0.00035656,20]
[327580385,1716243047519,-1000.0,0.00035656,30]
[327580386,1716243047528,-500.0,0.00035656,10]
[327580387,1716243047537,-200.0,0.00035656,10]
[327580388,1716243047547,-157.052106,0.00035748,34]
[327580390,1716243047556,-1000.0,0.000359,13]
[327580391,1716243047565,-5020.26168945,0.00035932,8]
[327580392,1716243047574,-50000.0,0.00036,16]
[327580393,1716243047584,-50000.0,0.00036,26]
[327580394,1716243047593,-428.12,0.00036157,120]
[327580395,1716243047602,-500.0,0.00036164,2]
[327580396,1716243047611,-790.42144,0.0003621,2]
[327580397,1716243047621,-1938.34,0.000363,3]
[327580398,1716243047630,-1938.34,0.000363,3]
[327580399,1716243047639,-1938.34,0.000363,3]
[327580400,1716243047648,-1938.34,0.000363,3]
[327580401,1716243047657,-1938.34,0.000363,3]
[327580402,1716243047666,-1938.34,0.000363,3]
[327580403,1716243047677,-1938.34,0.000363,3]
[327580404,1716243047687,-1938.34,0.000363,3]
[327580405,1716243047696,-1938.34,0.000363,3]
[327580406,1716243047706,-1938.34,0.000363,3]
[327580407,1716243047716,-1938.34,0.000363,3]
[327580408,1716243047726,-1938.34,0.000363,3]
[327580409,1716243047736,-1938.34,0.000363,3]
[327580410,1716243047746,-1938.34,0.000363,3]
[327580411,1716243047756,-1938.34,0.000363,3]
[327580412,1716243047765,-1938.34,0.000363,3]
[327580413,1716243047774,-1938.34,0.000363,3]
[327580414,1716243047783,-1938.34,0.000363,3]
[327580415,1716243047792,-1938.34,0.000363,3]
[327580416,1716243047802,-1938.34,0.000363,3]
[327580417,1716243047811,-500.0,0.00036437,10]
[327580418,1716243047820,-500.0,0.00036437,10]
[327580419,1716243047829,-500.0,0.00036437,10]
[327580420,1716243047839,-500.0,0.00036437,10]
[327580421,1716243047848,-157.052106,0.00036448,36]
[327580422,1716243047858,-150.0,0.00036591,120]
[327580423,1716243047867,-311.74964206,0.000366,2]
[327580424,1716243047876,-157.052106,0.00036748,36]
[327580425,1716243047884,-344.19183666,0.00036757,2]
[327580426,1716243047894,-212.19434734,0.000369,9]
[327580427,1716243047903,-5020.26168945,0.00036976,10]
[327580428,1716243047911,-50000.0,0.00037,17]
[327580429,1716243047921,-50000.0,0.00037,27]
[327580430,1716243047931,-2150.0,0.00037,2]
[327580431,1716243047940,-151.0,0.00037,7]
[327580432,1716243047949,-151.0,0.00037,7]
[327580433,1716243047958,-151.0,0.00037,7]
[327580434,1716243047967,-151.0,0.00037,7]
[327580435,1716243047976,-254.637505,0.00037,7]
[327580436,1716243047985,-151.0,0.00037,7]
[327580437,1716243047995,-211.46265,0.00037,7]
[327580438,1716243048004,-151.0,0.00037,7]
[327580439,1716243048013,-247.125205,0.00037,7]
[327580440,1716243048022,-247.125205,0.00037,7]
[327580441,1716243048031,-151.0,0.00037,7]
[327580442,1716243048040,-153.184176,0.00037,7]
[327580443,1716243048049,-151.0,0.00037,7]
[327580444,1716243048060,-151.0,0.00037,7]
[327580445,1716243048072,-151.0,0.00037,7]
[327580446,1716243048082,-286.74199,0.00037,7]
[327580447,1716243048091,-155.195597,0.00037,7]
[327580448,1716243048102,-151.0,0.00037,7]
[327580449,1716243048112,-151.0,0.00037,7]
[327580450,1716243048121,-151.0,0.00037,7]
[327580451,1716243048129,-151.0,0.00037,7]
[327580452,1716243048140,-151.0,0.00037,7]
[327580453,1716243048149,-151.0,0.00037,7]
[327580454,1716243048159,-151.0,0.00037,7]
[327580455,1716243048168,-151.0,0.00037,7]
[327580456,1716243048180,-247.71691,0.00037,7]
[327580457,1716243048189,-247.71691,0.00037,7]
[327580458,1716243048198,-194.658221,0.00037,7]
[327580459,1716243048207,-194.658221,0.00037,7]
[327580460,1716243048216,-151.0,0.00037,7]
[327580461,1716243048225,-151.0,0.00037,7]
[327580462,1716243048234,-151.0,0.00037,7]
[327580463,1716243048244,-151.0,0.00037,7]
[327580464,1716243048253,-151.0,0.00037,7]
[327580465,1716243048262,-188.0,0.00037,7]
[327580466,1716243048271,-283.107403,0.00037,7]
[327580467,1716243048281,-151.0,0.00037,7]
[327580468,1716243048290,-151.0,0.00037,7]
[327580469,1716243048300,-151.0,0.00037,7]
[327580470,1716243048309,-151.0,0.00037,7]
[327580471,1716243048318,-151.0,0.00037,7]
[327580472,1716243048327,-151.0,0.00037,7]
[327580473,1716243048336,-151.0,0.00037,7]
[327580474,1716243048346,-151.0,0.00037,7]
[327580475,1716243048356,-151.0,0.00037,7]
[327580476,1716243048365,-303.540509,0.00037,7]
[327580477,1716243048375,-303.540509,0.00037,7]
[327580478,1716243048384,-151.0,0.00037,7]
[327580479,1716243048394,-151.0,0.00037,7]
[327580480,1716243048404,-228.384483,0.00037,7]
[327580481,1716243048414,-152.976349,0.00037,7]
[327580482,1716243048425,-151.0,0.00037,7]
[327580483,1716243048434,-151.0,0.00037,7]
[327580484,1716243048444,-151.0,0.00037,7]
[327580485,1716243048454,-151.0,0.00037,7]
[327580486,1716243048464,-151.0,0.00037,7]
[327580487,1716243048473,-151.0,0.00037,7]
[327580488,1716243048483,-151.0,0.00037,7]
[327580489,1716243048492,-151.0,0.00037,7]
[327580490,1716243048501,-151.0,0.00037,7]
[327580491,1716243048512,-1596.278744,0.00037,7]
[327580492,1716243048522,-309.636444,0.00037,7]
[327580493,1716243048532,-1596.278744,0.00037,7]
[327580494,1716243048541,-309.636444,0.00037,7]
[327580495,1716243048551,-151.0,0.00037,7]
[327580496,1716243048560,-183.214919,0.00037,7]
[327580497,1716243048570,-151.0,0.00037,7]
[327580498,1716243048579,-183.214919,0.00037,7]
[327580499,1716243048589,-305.73631618,0.0003715,2]
[327580500,1716243048599,-308.28359419,0.00037162,120]
[327580501,1716243048611,-153.37,0.0003725,2]
[327580502,1716243048620,-157.052105,0.00037448,36]
[327580503,1716243048629,-500.0,0.00037533,10]
[327580504,1716243048640,-500.0,0.00037533,10]
[327580505,1716243048650,-500.0,0.00037533,10]
[327580506,1716243048661,-500.0,0.00037533,10]
[327580507,1716243048672,-1442.56918503,0.000377,4]
[327580508,1716243048682,-157.052105,0.00037748,36]
[327580509,1716243048692,-11294.33112896,0.00038,18]
[327580510,1716243048708,-597.199,0.00038,18]
[327580511,1716243048721,-17003.17041859,0.00038,18]
[327580512,1716243049635,-21105.29945245,0.00038,18]
[327580513,1716243049644,-30720.18001904,0.00038,28]
[327580514,1716243049762,-300.0,0.000289,10]
[327580515,1716243049772,-151.0,0.00035,7]
[327580516,1716243049782,-3900.96077803,0.00038,28]
[327580517,1716243049842,-2e-08,0.00038,28]
[327580518,1716243049855,-15378.85920291,0.00038,28]
[327580519,1716243049865,-1001.77213746,0.00038,4]
[327580520,1716243049876,-171.42,0.00038,2]
[327580521,1716243049885,-5020.26168945,0.0003802,11]
[327580522,1716243049896,-157.54,0.00038027,30]
[327580523,1716243049906,-344.19183666,0.00038328,2]
[327580524,1716243049917,-1899.30423502,0.00038356,6]
[327580525,1716243049930,-665.77576498,0.00038356,6]
[327580526,1716243049940,-2000.0,0.000384,2]
[327580527,1716243049949,-1000.0,0.00038401,2]
[327580528,1716243049959,-157.052105,0.00038448,38]
[327580529,1716243049968,-221.0,0.0003845,2]
[327580530,1716243049978,-351.8,0.00038569,2]
[327580531,1716243049989,-150.0,0.00038569,2]
[327580532,1716243049999,-163.42,0.00038569,2]
[327580533,1716243050009,-300.0,0.00038569,2]
[327580534,1716243050018,-420.64,0.00038569,2]
[327580535,1716243050028,-150.0,0.00038569,2]
[327580536,1716243050037,-351.8,0.00038569,2]
[327580537,1716243050047,-150.0,0.00038569,2]
[327580538,1716243050062,-150.0,0.00038569,2]
[327580539,1716243050072,-420.64,0.00038569,2]
[327580540,1716243050082,-837.25,0.00038569,2]
[327580541,1716243050092,-351.8,0.00038569,2]
[327580542,1716243050104,-150.0,0.00038569,2]
[327580543,1716243050114,-300.0,0.00038569,2]
[327580544,1716243050123,-150.0,0.00038569,2]
[327580545,1716243050134,-150.0,0.00038569,2]
[327580546,1716243050146,-150.0,0.00038569,2]
[327580547,1716243050156,-264.41,0.00038569,2]
[327580548,1716243050166,-150.0,0.00038569,2]
[327580549,1716243050177,-351.72,0.00038569,2]
[327580550,1716243050186,-351.72,0.00038575,2]
[327580551,1716243050196,-420.64,0.00038575,2]
[327580552,1716243050205,-588.78,0.00038575,2]
[327580553,1716243050216,-500.0,0.00038629,10]
[327580554,1716243050226,-471.67282206,0.00038629,10]